fUSD/lending_fUSD_20250106
["ID","MTS","AMOUNT","RATE_DAILY","PERIOD"]
[347860101,1736165442715,-500.0,0.00010872,2]
[347860102,1736165442724,-500.0,0.00010872,2]
[347860103,1736165442733,-1899.41,0.00010872,2]
[347860104,1736165442743,-650.75,0.00010872,2]
[347860106,1736165442753,-500.0,0.00010872,2]
[347860107,1736165442762,-541.93,0.00010872,2]
[347860109,1736165442771,-3620.4,0.00010872,2]
[347860110,1736165442781,-500.0,0.00010872,2]
[347860111,1736165442790,-500.0,0.00010872,2]
[347860112,1736165442800,-500.0,0.00010872,2]
[347860113,1736165442810,-1834.48,0.00010872,2]
[347860114,1736165442819,-849.4,0.00010872,2]
[347860115,1736165442828,-1251.15,0.00010872,2]
[347860116,1736165442837,-1323.64,0.00010873,2]
[347860117,1736165442846,-2225.17,0.00010873,2]
[347860118,1736165442856,-1276.56,0.00010873,2]
[347860119,1736165442865,-3458.97,0.00010873,2]
[347860121,1736165442875,-1536.7,0.00010873,2]
[347860123,1736165442884,-1970.2,0.00010873,2]
[347860124,1736165442893,-1217.15,0.00010873,2]
[347860126,1736165442903,-855.46,0.00010873,2]
[347860128,1736165442912,-587.0,0.00010889,2]
[347860130,1736165442922,-4518.15488091,0.0001089,2]
[347860132,1736165442931,-3000.0,0.0001089,2]
[347860135,1736165442941,-500.0,0.00010899,2]
[347860137,1736165442950,-851.75,0.00010899,2]
[347860139,1736165442959,-1366.83,0.00010899,2]
[347860141,1736165442969,-938.05,0.00010899,2]
[347860143,1736165442978,-898.97,0.00010899,2]
[347860145,1736165442987,-1225.13,0.00010899,2]
[347860147,1736165442998,-377.957,0.000109,2]
[347860149,1736165443008,-8213.181,0.000109,2]
[347860150,1736165443017,-3846.96009678,0.000109,2]
[347860151,1736165443026,-3846.96009678,0.000109,2]
[347860152,1736165443036,-3846.96009678,0.000109,2]
[347860153,1736165443045,-3846.96009678,0.000109,2]
[347860154,1736165443054,-3846.96009678,0.000109,2]
[347860155,1736165443063,-3846.96009678,0.000109,2]
[347860156,1736165443072,-3846.96009678,0.000109,2]
[347860157,1736165443081,-3846.96009678,0.000109,2]
[347860158,1736165443091,-3846.96009678,0.000109,2]
[347860159,1736165443099,-3846.96009678,0.000109,2]
[347860160,1736165443109,-1200.0,0.000109,3]
[347860161,1736165443118,-168.03580316,0.000109,2]
[347860162,1736165443127,-1937.0,0.000109,2]
[347860163,1736165443136,-253.38723423,0.000109,2]
[347860164,1736165443146,-500.0,0.00010959,2]
[347860165,1736165443155,-2000.0,0.00010959,2]
[347860166,1736165443164,-500.0,0.00010959,2]
[347860167,1736165443174,-200.0,0.00010959,2]
[347860168,1736165443183,-3030.0,0.00010959,2]
[347860169,1736165443193,-500.0,0.00010973,2]
[347860170,1736165443203,-499.40250892,0.00010973,2]
[347860171,1736165443213,-156.78541352,0.00010973,2]
[347860172,1736165443222,-151.79027839,0.00010973,2]
[347860173,1736165443231,-152.79245062,0.00010973,2]
[347860174,1736165443240,-251.65084609,0.00010973,2]
[347860175,1736165443249,-151.7922475,0.00010973,2]
[347860176,1736165443258,-150.7936131,0.00010973,2]
[347860177,1736165443267,-151.7922475,0.00010973,2]
[347860178,1736165443276,-151.79648817,0.00010973,2]
[347860179,1736165443286,-150.0,0.00010986,2]
[347860180,1736165443295,-400.0,0.00010986,2]
[347860181,1736165443304,-182.88,0.00010986,2]
[347860182,1736165443314,-150.0,0.00010986,2]
[347860183,1736165443324,-436.97,0.00010986,2]
[347860184,1736165443334,-150.0,0.00010986,2]
[347860185,1736165443343,-150.0,0.00010986,2]
[347860186,1736165443352,-182.88,0.00010986,2]
[347860187,1736165443361,-272.83,0.00010986,2]
[347860188,1736165443371,-437.49,0.00010986,2]
[347860189,1736165443380,-436.97,0.00010986,2]
[347860190,1736165443389,-150.0,0.00010986,2]
[347860191,1736165443398,-182.88,0.00010986,2]
[347860192,1736165443407,-150.0,0.00010986,2]
[347860193,1736165443416,-182.88,0.00010986,2]
[347860194,1736165443427,-436.97,0.00010986,2]
[347860195,1736165443437,-150.0,0.00010986,2]
[347860196,1736165443447,-436.97,0.00010986,2]
[347860197,1736165443456,-436.97,0.00010986,2]
[347860198,1736165443466,-589.14,0.00010986,2]
[347860199,1736165443475,-151.85,0.00010986,2]
[347860200,1736165443484,-429.76879674,0.00010989,2]
[347860201,1736165443494,-20724.40910563,0.00010998,2]
[347860202,1736165443505,-1080.72791408,0.00010999,3]
[347860203,1736165443514,-1080.72791408,0.00010999,3]
[347860204,1736165443523,-1080.72791409,0.00010999,3]
[347860205,1736165443533,-1080.72791409,0.00010999,3]
[347860206,1736165443542,-1391.99922396,0.00010999,3]
[347860207,1736165443551,-1080.72791408,0.00010999,3]
[347860208,1736165443560,-1080.72791408,0.00010999,3]
[347860209,1736165443570,-1080.72791408,0.00010999,3]
[347860210,1736165443580,-1080.72791408,0.00010999,3]
[347860211,1736165443589,-2082.15,0.00010999,2]
[347860212,1736165443599,-500.0,0.00010999,2]
[347860213,1736165443608,-500.0,0.00010999,2]
[347860214,1736165443617,-500.0,0.00010999,2]
[347860215,1736165443627,-13305.17,0.00010999,2]
[347860216,1736165443636,-161.73,0.00010999,2]
[347860217,1736165443645,-927.0,0.00010999,2]
[347860218,1736165443655,-1399155.23751777,0.00011,4]
[347860219,1736165444537,-500.0,0.00010026,2]
[347860220,1736165444547,-500.0,0.000103,2]
[347860221,1736165444556,-500.0,0.00010574,2]
[347860222,1736165444566,-513.19,0.00010598,2]
[347860223,1736165444575,-965.48438828,0.00010848,2]
[347860224,1736165444587,-1278.67496836,0.00010848,2]
[347860225,1736165444608,-1913.46064336,0.00010848,2]
[347860226,1736165444618,-1975488.30683843,0.00011,4]
[347860227,1736165444629,-850044.50455811,0.00011,4]
[347860228,1736165444640,-485.82,0.00011,4]
[347860229,1736165444657,-1449.97823036,0.00011,4]
[347860230,1736165445016,-500.0,0.00010026,2]
[347860231,1736165445026,-500.58876615,0.00010871,2]
[347860232,1736165445035,-500.0,0.00010871,2]
[347860233,1736165445046,-275.0191708,0.00010871,2]
[347860234,1736165445055,-11071.1535293,0.00011,4]
[347860235,1736165445067,-330097.87925823,0.00011,4]
[347860236,1736165445084,-147971.65034714,0.00011,4]
[347860237,1736165445919,-500.0,0.00010026,2]
[347860238,1736165445928,-449.81149544,0.00010799,2]
[347860239,1736165445942,-50.18850456,0.00010799,2]
[347860240,1736165445952,-500.0,0.00010871,2]
[347860241,1736165445963,-500.9536249,0.00010871,2]
[347860243,1736165445972,-2075.64428508,0.00011,4]
[347860246,1736165445996,-9962.31862752,0.00011,4]
[347860247,1736165446007,-576.88144386,0.00011,4]
[347860248,1736165446025,-6731.01086616,0.00011,4]
[347860249,1736165446036,-541.35519181,0.00011,4]
[347860250,1736165446045,-7131.61500819,0.00011,2]
[347860251,1736165446062,-450.42986863,0.00011,2]
[347860252,1736165446071,-500.0,0.00011,2]
[347860253,1736165446080,-500.0,0.00011,2]
[347860254,1736165446089,-1043.27281075,0.00011,2]
[347860255,1736165446170,-500.0,0.00010871,2]
[347860256,1736165446179,-25584.19840219,0.00011,2]
[347860257,1736165446193,-1033.15999996,0.00011,2]
[347860258,1736165446277,-49712.0,0.00011,2]
[347860383,1736166317175,512.15,8.219e-05,2]
[347860395,1736166632203,-745.6524641,9.343e-05,2]
[347860396,1736166632354,-435.51999,9.343e-05,2]
[347860397,1736166632366,-504.8975459,9.343e-05,2]
[347860398,1736166632376,-250.0,9.532e-05,2]
[347860399,1736166632386,-158.73,9.532e-05,2]
[347860400,1736166632395,-43.92803197,9.559e-05,2]
[347860401,1736166632407,-206.07196803,9.559e-05,2]
[347860402,1736166632418,-477.52,9.614e-05,2]
[347860403,1736166632428,-679.89,9.737e-05,2]
[347860404,1736166632437,-150.0,9.888e-05,2]
[347860405,1736166632446,-1000.0,9.905e-05,2]
[347860406,1736166632456,-155.0042,9.926e-05,2]
[347860407,1736166632465,-1540.374,9.926e-05,2]
[347860408,1736166632474,-150.0,9.987e-05,2]
[347860409,1736166632484,-6169.79895111,9.988e-05,2]
[347860410,1736166632520,-371.35,9.988e-05,2]
[347860411,1736166632555,-273.24933207,9.988e-05,2]
[347860412,1736166632566,-1601.04711731,9.988e-05,2]
[347860413,1736166632578,-2572.06559232,9.988e-05,2]
[347860414,1736166632595,-11333.02144168,9.988e-05,2]
[347860430,1736166638098,-13556.424,9.988e-05,2]
[347860431,1736166638110,-5305.36144738,9.988e-05,2]
[347860432,1736166638135,-3250.66714693,9.988e-05,2]
[347860433,1736166638147,-303.2257835,9.988e-05,2]
[347860434,1736166638161,-1000.0,9.988e-05,2]
[347860435,1736166638186,-747.72488862,9.988e-05,2]
[347860436,1736166638239,-3837.00937983,9.988e-05,2]
[347860437,1736166638249,-463.1199743,9.999e-05,2]
[347860438,1736166638258,-22329.32376213,0.0001,2]
[347860439,1736166638270,-35621.18090369,0.0001,2]
[347860440,1736166638281,-3992.5,0.0001,2]
[347860441,1736166638293,-3739.99999977,0.0001,2]
[347860442,1736166638325,-1094.72657998,0.0001,2]
[347860443,1736166638346,-992.094,0.0001,2]
[347860444,1736166638358,-466.48125778,0.0001,2]
[347860445,1736166638410,-13437.7428538,0.0001,2]
[347860458,1736166640157,-592.53,0.0001,2]
[347860459,1736166640169,-537.6453508,0.0001,2]
[347860460,1736166640181,-2144.6,0.0001,2]
[347860465,1736166640267,-500.0,0.0001,2]
[347860467,1736166640279,-32631.17529205,0.0001,2]
[347860469,1736166640289,-155.76501918,0.0001,2]
[347860471,1736166640298,-231.98464702,0.00010025,2]
[347860473,1736166640309,-500.0,0.00010025,2]
[347860475,1736166640319,-244.86939466,0.00010025,2]
[347860477,1736166640328,-500.0,0.00010025,2]
[347860479,1736166640338,-500.0,0.00010025,2]
[347860481,1736166640347,-500.0,0.00010025,2]
[347860483,1736166640356,-500.0,0.00010025,2]
[347860485,1736166640366,-500.0,0.00010025,2]
[347860487,1736166640376,-500.0,0.00010026,2]
[347860489,1736166640385,-500.0,0.00010026,2]
[347860491,1736166640394,-500.0,0.00010026,2]
[347860493,1736166640404,-500.0,0.00010026,2]
[347860495,1736166640413,-502.05,0.00010026,2]
[347860497,1736166640423,-500.0,0.00010026,2]
[347860499,1736166640432,-500.0,0.00010026,2]
[347860501,1736166640441,-500.0,0.00010026,2]
[347860503,1736166640450,-500.0,0.00010026,2]
[347860505,1736166640459,-500.0,0.00010026,2]
[347860507,1736166640469,-500.0,0.00010026,2]
[347860509,1736166640479,-500.0,0.00010026,2]
[347860511,1736166640488,-500.0,0.00010026,2]
[347860513,1736166640497,-372.65639797,0.00010026,2]
[347860515,1736166640506,-500.0,0.00010026,2]
[347860516,1736166640516,-500.0,0.00010026,2]
[347860518,1736166640525,-500.0,0.00010026,2]
[347860519,1736166640535,-500.0,0.00010026,2]
[347860520,1736166640545,-780.23,0.00010026,2]
[347860521,1736166640555,-564.29,0.00010026,2]
[347860522,1736166640564,-704.52,0.00010026,2]
[347860523,1736166640573,-782.96,0.00010026,2]
[347860524,1736166640583,-572.74185475,0.00010026,2]
[347860525,1736166640593,-500.0,0.00010026,2]
[347860526,1736166640602,-500.0,0.00010026,2]
[347860527,1736166640613,-506.91964728,0.00010026,2]
[347860528,1736166640623,-505.26483855,0.00010026,2]
[347860529,1736166640632,-500.0,0.00010026,2]
[347860530,1736166640642,-500.0,0.00010026,2]
[347860531,1736166640651,-500.0,0.00010026,2]
[347860532,1736166640661,-500.0,0.00010026,2]
[347860533,1736166640670,-500.0,0.00010026,2]
[347860534,1736166640680,-500.0,0.00010026,2]
[347860535,1736166640689,-500.0,0.00010026,2]
[347860538,1736166640899,-500.0,0.00010026,2]
[347860539,1736166640911,-500.0,0.00010026,2]
[347860540,1736166640920,-500.0,0.00010026,2]
[347860541,1736166640930,-500.0,0.00010026,2]
[347860542,1736166640940,-500.0,0.00010026,2]
[347860543,1736166640951,-500.0,0.00010026,2]
[347860544,1736166640961,-500.0,0.00010026,2]
[347860545,1736166640971,-500.0,0.00010026,2]
[347860546,1736166640980,-500.0,0.00010026,2]
[347860547,1736166640989,-500.0,0.00010026,2]
[347860548,1736166640999,-650.75,0.00010026,2]
[347860549,1736166641010,-500.0,0.00010026,2]
[347860550,1736166641019,-500.0,0.00010026,2]
[347860551,1736166641028,-500.0,0.00010026,2]
[347860552,1736166641038,-541.93,0.00010026,2]
[347860553,1736166641048,-500.0,0.00010026,2]
[347860554,1736166641057,-500.0,0.00010026,2]
[347860555,1736166641066,-500.0,0.00010026,2]
[347860556,1736166641075,-500.0,0.00010026,2]
[347860557,1736166641085,-500.0,0.00010026,2]
[347860558,1736166641094,-78512.19993733,0.00010026,2]
[347860559,1736166641104,-167.48,0.00010065,2]
[347860560,1736166641113,-154.25,0.00010137,2]
[347860561,1736166641123,-28733.55,0.00010137,2]
[347860562,1736166641132,-375.0,0.000102,5]
[347860563,1736166641142,-900.0,0.000102,3]
[347860564,1736166641151,-500.0,0.00010298,2]
[347860565,1736166641161,-1445.24,0.00010298,2]
[347860566,1736166641170,-1641.31,0.00010298,2]
[347860567,1736166641180,-881.23,0.00010298,2]
[347860568,1736166641190,-500.0,0.00010298,2]
[347860569,1736166641199,-1716.22,0.00010298,2]
[347860570,1736166641209,-500.0,0.00010298,2]
[347860571,1736166641219,-500.0,0.00010298,2]
[347860572,1736166641228,-500.0,0.00010298,2]
[347860573,1736166641238,-860.11,0.00010298,2]
[347860574,1736166641248,-500.0,0.00010298,2]
[347860575,1736166641257,-926.7,0.00010298,2]
[347860576,1736166641267,-500.0,0.00010298,2]
[347860577,1736166641276,-1142.06,0.00010298,2]
[347860578,1736166641286,-3872.0,0.00010298,2]
[347860579,1736166641296,-500.0,0.00010299,2]
[347860580,1736166641308,-500.0,0.00010299,2]
[347860581,1736166641317,-500.0,0.00010299,2]
[347860582,1736166641327,-500.0,0.00010299,2]
[347860583,1736166641337,-500.0,0.00010299,2]
[347860584,1736166641347,-500.0,0.00010299,2]
[347860585,1736166641356,-500.0,0.00010299,2]
[347860586,1736166641365,-500.0,0.00010299,2]
[347860587,1736166641375,-500.0,0.00010299,2]
[347860588,1736166641384,-500.0,0.00010299,2]
[347860589,1736166641393,-500.0,0.00010299,2]
[347860590,1736166641403,-500.0,0.00010299,2]
[347860591,1736166641412,-500.0,0.00010299,2]
[347860592,1736166641421,-840.86,0.00010299,2]
[347860593,1736166641431,-545.45,0.00010299,2]
[347860594,1736166641440,-500.0,0.00010299,2]
[347860595,1736166641450,-2325.83,0.00010299,2]
[347860596,1736166641459,-500.0,0.00010299,2]
[347860597,1736166641468,-500.0,0.00010299,2]
[347860598,1736166641478,-500.0,0.00010299,2]
[347860599,1736166641487,-500.0,0.00010299,2]
[347860600,1736166641496,-500.0,0.00010299,2]
[347860601,1736166641506,-500.0,0.00010299,2]
[347860602,1736166641515,-500.0,0.00010299,2]
[347860603,1736166641524,-500.0,0.00010299,2]
[347860604,1736166641534,-500.0,0.00010299,2]
[347860605,1736166641543,-500.0,0.00010299,2]
[347860606,1736166641553,-500.0,0.00010299,2]
[347860607,1736166641562,-500.0,0.00010299,2]
[347860608,1736166641571,-500.0,0.00010299,2]
[347860609,1736166641581,-500.0,0.00010299,2]
[347860610,1736166641590,-500.0,0.00010299,2]
[347860611,1736166641599,-500.0,0.00010299,2]
[347860612,1736166641609,-500.0,0.00010299,2]
[347860613,1736166641619,-436.87826717,0.00010299,2]
[347860614,1736166641628,-500.0,0.00010299,2]
[347860615,1736166641638,-500.0,0.00010299,2]
[347860616,1736166641647,-500.0,0.00010299,2]
[347860617,1736166641656,-932.73,0.00010299,2]
[347860618,1736166641666,-518.3,0.00010299,2]
[347860619,1736166641675,-210.79,0.00010299,2]
[347860620,1736166641685,-500.0,0.00010299,2]
[347860621,1736166641694,-500.0,0.00010299,2]
[347860622,1736166641703,-553.9,0.00010299,2]
[347860623,1736166641712,-500.0,0.00010299,2]
[347860624,1736166641722,-500.0,0.00010299,2]
[347860625,1736166641732,-292.27,0.00010299,2]
[347860626,1736166641741,-631.46538631,0.00010299,2]
[347860627,1736166641751,-500.0,0.00010299,2]
[347860628,1736166641760,-500.0,0.00010299,2]
[347860629,1736166641770,-500.0,0.00010299,2]
[347860630,1736166641779,-500.0,0.00010299,2]
[347860631,1736166641788,-500.0,0.00010299,2]
[347860632,1736166641798,-1464.31,0.00010299,2]
[347860633,1736166641808,-500.0,0.00010299,2]
[347860634,1736166641818,-500.0,0.00010299,2]
[347860635,1736166641827,-500.0,0.00010299,2]
[347860636,1736166641836,-500.0,0.00010299,2]
[347860637,1736166641846,-500.0,0.00010299,2]
[347860638,1736166641855,-500.0,0.00010299,2]
[347860639,1736166641864,-500.0,0.00010299,2]
[347860640,1736166641878,-700.41,0.00010299,2]
[347860641,1736166641887,-584.15,0.00010299,2]
[347860642,1736166641897,-500.0,0.00010299,2]
[347860643,1736166641907,-500.0,0.00010299,2]
[347860644,1736166641916,-500.0,0.00010299,2]
[347860645,1736166641925,-500.0,0.00010299,2]
[347860646,1736166641935,-500.0,0.00010299,2]
[347860647,1736166641944,-525.46,0.00010299,2]
[347860648,1736166641954,-587.99,0.00010299,2]
[347860649,1736166641963,-1496.051055,0.00010299,2]
[347860650,1736166641972,-500.0,0.00010299,2]
[347860651,1736166641982,-500.0,0.00010299,2]
[347860652,1736166641991,-500.0,0.00010299,2]
[347860653,1736166642000,-500.0,0.00010299,2]
[347860654,1736166642010,-1398.047305,0.00010299,2]
[347860655,1736166642020,-157.8651,0.00010299,2]
[347860656,1736166642029,-500.0,0.00010299,2]
[347860657,1736166642040,-156.313771,0.00010299,2]
[347860658,1736166642050,-2804.63,0.00010299,2]
[347860659,1736166642059,-619.88,0.00010299,2]
[347860660,1736166642068,-500.0,0.00010299,2]
[347860661,1736166642077,-500.0,0.00010299,2]
[347860662,1736166642087,-506.67691989,0.00010299,2]
[347860663,1736166642097,-500.0,0.00010299,2]
[347860664,1736166642106,-500.0,0.00010299,2]
[347860665,1736166642115,-501.33172603,0.00010299,2]
[347860666,1736166642124,-501.63872328,0.00010299,2]
[347860667,1736166642134,-501.11955231,0.00010299,2]
[347860668,1736166642144,-500.0,0.00010299,2]
[347860669,1736166642154,-500.0,0.00010299,2]
[347860670,1736166642163,-500.0,0.00010299,2]
[347860671,1736166642173,-500.0,0.00010299,2]
[347860672,1736166642184,-501.32859064,0.00010299,2]
[347860673,1736166642193,-500.0,0.00010299,2]
[347860674,1736166642203,-501.2773116,0.00010299,2]
[347860675,1736166642213,-1914.79,0.00010299,2]
[347860676,1736166642222,-500.0,0.00010299,2]
[347860677,1736166642232,-500.0,0.00010299,2]
[347860678,1736166642242,-500.0,0.00010299,2]
[347860679,1736166642253,-500.51172738,0.00010299,2]
[347860680,1736166642262,-500.0,0.00010299,2]
[347860681,1736166642271,-500.0,0.00010299,2]
[347860682,1736166642281,-500.0,0.00010299,2]
[347860683,1736166642290,-502.69811503,0.00010299,2]
[347860684,1736166642300,-500.0,0.00010299,2]
[347860685,1736166642310,-508.36521756,0.00010299,2]
[347860686,1736166642320,-501.00282612,0.00010299,2]
[347860687,1736166642329,-500.35373502,0.00010299,2]
[347860688,1736166642339,-504.88549916,0.00010299,2]
[347860689,1736166642348,-500.0,0.00010299,2]
[347860690,1736166642357,-500.0,0.00010299,2]
[347860691,1736166642367,-500.0,0.00010299,2]
[347860692,1736166642377,-502.05273493,0.00010299,2]
[347860693,1736166642386,-500.0,0.00010299,2]
[347860694,1736166642396,-500.0,0.00010299,2]
[347860695,1736166642406,-501.46697405,0.00010299,2]
[347860696,1736166642415,-500.0,0.00010299,2]
[347860697,1736166642425,-500.0,0.00010299,2]
[347860698,1736166642435,-2683.28,0.00010299,2]
[347860699,1736166642445,-500.0,0.00010299,2]
[347860700,1736166642455,-596.3,0.00010299,2]
[347860701,1736166642464,-1576.22,0.00010299,2]
[347860702,1736166642474,-500.0,0.00010299,2]
[347860703,1736166642483,-2581.75,0.00010299,2]
[347860704,1736166642493,-500.0,0.00010299,2]
[347860705,1736166642502,-500.0,0.00010299,2]
[347860706,1736166642511,-500.0,0.00010299,2]
[347860707,1736166642520,-1489.43,0.00010299,2]
[347860708,1736166642529,-500.0,0.00010299,2]
[347860709,1736166642540,-500.0,0.00010299,2]
[347860710,1736166642550,-2443.95,0.00010299,2]
[347860711,1736166642559,-500.0,0.00010299,2]
[347860712,1736166642568,-500.0,0.00010299,2]
[347860713,1736166642578,-500.0,0.00010299,2]
[347860714,1736166642587,-500.0,0.00010299,2]
[347860715,1736166642596,-2242.1,0.00010299,2]
[347860716,1736166642605,-500.0,0.00010299,2]
[347860717,1736166642615,-2711.53,0.00010299,2]
[347860718,1736166642624,-500.0,0.00010299,2]
[347860719,1736166642633,-500.0,0.00010299,2]
[347860720,1736166642643,-694.59,0.00010299,2]
[347860721,1736166642652,-634.38,0.00010299,2]
[347860722,1736166642662,-500.0,0.00010299,2]
[347860723,1736166642670,-500.0,0.00010299,2]
[347860724,1736166642680,-500.0,0.00010299,2]
[347860725,1736166642689,-500.0,0.00010299,2]
[347860726,1736166642700,-500.0,0.00010299,2]
[347860727,1736166642709,-500.0,0.00010299,2]
[347860728,1736166642719,-1130.29,0.00010299,2]
[347860729,1736166642729,-769.9,0.00010299,2]
[347860730,1736166642739,-500.0,0.00010299,2]
[347860731,1736166642749,-500.0,0.00010299,2]
[347860732,1736166642760,-500.0,0.00010299,2]
[347860733,1736166642769,-552.4,0.00010299,2]
[347860734,1736166642778,-568.25,0.00010299,2]
[347860735,1736166642787,-1053.96,0.00010299,2]
[347860736,1736166642797,-500.0,0.00010299,2]
[347860737,1736166642806,-500.0,0.00010299,2]
[347860738,1736166642816,-656.2,0.00010299,2]
[347860739,1736166642825,-365.02,0.00010299,2]
[347860740,1736166642834,-500.0,0.00010299,2]
[347860741,1736166642844,-814.69,0.00010299,2]
[347860742,1736166642853,-500.0,0.00010299,2]
[347860743,1736166642862,-500.0,0.00010299,2]
[347860744,1736166642875,-500.0,0.00010299,2]
[347860745,1736166642884,-500.0,0.00010299,2]
[347860746,1736166642893,-500.0,0.00010299,2]
[347860747,1736166642902,-500.0,0.00010299,2]
[347860748,1736166642912,-500.0,0.00010299,2]
[347860749,1736166642921,-352.56061788,0.00010299,2]
[347860750,1736166642930,-500.0,0.00010299,2]
[347860751,1736166642939,-500.0,0.00010299,2]
[347860752,1736166642949,-500.0,0.00010299,2]
[347860753,1736166642958,-500.0,0.00010299,2]
[347860754,1736166642968,-500.0,0.00010299,2]
[347860755,1736166642977,-500.0,0.00010299,2]
[347860756,1736166642986,-333.74,0.00010299,2]
[347860757,1736166642995,-500.0,0.00010299,2]
[347860758,1736166643005,-500.0,0.00010299,2]
[347860759,1736166643014,-500.0,0.00010299,2]
[347860761,1736166643024,-888.79,0.00010299,2]
[347860762,1736166643033,-501.50981678,0.00010299,2]
[347860763,1736166643043,-502.9020632,0.00010299,2]
[347860764,1736166643054,-258.56,0.00010299,2]
[347860765,1736166643063,-500.0,0.00010299,2]
[347860767,1736166643074,-500.0,0.00010299,2]
[347860769,1736166643083,-500.0,0.00010299,2]
[347860771,1736166643092,-500.0,0.00010299,2]
[347860773,1736166643102,-500.0,0.000103,2]
[347860775,1736166643112,-500.0,0.000103,2]
[347860777,1736166643122,-500.0,0.000103,2]
[347860779,1736166643132,-500.0,0.000103,2]
[347860782,1736166643141,-502.05,0.000103,2]
[347860786,1736166643151,-500.0,0.000103,2]
[347860789,1736166643160,-500.0,0.000103,2]
[347860792,1736166643170,-500.0,0.000103,2]
[347860796,1736166643180,-500.0,0.000103,2]
[347860798,1736166643188,-500.0,0.000103,2]
[347860799,1736166643198,-500.0,0.000103,2]
[347860800,1736166643207,-500.0,0.000103,2]
[347860801,1736166643216,-500.0,0.000103,2]
[347860802,1736166643226,-500.0,0.000103,2]
[347860803,1736166643235,-780.23,0.000103,2]
[347860804,1736166643244,-564.29,0.000103,2]
[347860805,1736166643253,-704.52,0.000103,2]
[347860806,1736166643263,-782.96,0.000103,2]
[347860807,1736166643272,-500.0,0.000103,2]
[347860808,1736166643282,-500.0,0.000103,2]
[347860809,1736166643291,-500.0,0.000103,2]
[347860810,1736166643300,-500.0,0.000103,2]
[347860811,1736166643309,-500.0,0.000103,2]
[347860812,1736166643319,-500.0,0.000103,2]
[347860813,1736166643329,-500.0,0.000103,2]
[347860814,1736166643339,-500.0,0.000103,2]
[347860815,1736166643350,-500.0,0.000103,2]
[347860816,1736166643360,-500.0,0.000103,2]
[347860817,1736166643369,-500.0,0.000103,2]
[347860818,1736166643379,-500.0,0.000103,2]
[347860819,1736166643388,-500.0,0.000103,2]
[347860820,1736166643397,-650.75,0.000103,2]
[347860821,1736166643406,-500.0,0.000103,2]
[347860822,1736166643416,-541.93,0.000103,2]
[347860823,1736166643425,-500.0,0.000103,2]
[347860824,1736166643434,-500.0,0.000103,2]
[347860825,1736166643444,-500.0,0.000103,2]
[347860826,1736166643453,-1800.0,0.000103,3]
[347860827,1736166643462,-5000.0,0.00010399,2]
[347860828,1736166643471,-2700.0,0.000104,3]
[347860829,1736166643480,-566.164,0.0001045,2]
[347860830,1736166643489,-512.15,0.00010452,2]
[347860831,1736166643499,-3055.2678,0.00010474,2]
[347860832,1736166643508,-500.0,0.00010499,2]
[347860833,1736166643517,-500.0,0.00010499,2]
[347860834,1736166643526,-500.0,0.00010499,2]
[347860835,1736166643535,-500.0,0.00010499,2]